fUST/lending_fUST_20241123
["ID","MTS","AMOUNT","RATE_DAILY","PERIOD"]
[343024955,1732293050174,-577.581238,0.0001814,2]
[343024956,1732293050183,-3000.0,0.0001815,2]
[343024957,1732293050193,-3000.0,0.0001816,2]
[343024958,1732293050203,-3000.0,0.0001817,2]
[343024959,1732293050212,-151.0,0.0001817,2]
[343024960,1732293050221,-153.438023,0.0001817,2]
[343024961,1732293050233,-181.345499,0.0001817,2]
[343024962,1732293050244,-151.0,0.00018178,2]
[343024963,1732293050254,-151.0,0.00018178,2]
[343024964,1732293050265,-914.284859,0.00018178,2]
[343024965,1732293050276,-914.284859,0.00018178,2]
[343024966,1732293050286,-3000.0,0.0001818,2]
[343024967,1732293050297,-1015.806133,0.0001818,2]
[343024968,1732293050310,-1015.806133,0.0001818,2]
[343024969,1732293050322,-172.108049,0.0001818,2]
[343024970,1732293050333,-151.0,0.0001818,2]
[343024971,1732293050344,-289.193736,0.0001818,2]
[343024972,1732293050355,-1088.01957,0.0001818,2]
[343024973,1732293050365,-300.053411,0.0001818,2]
[343024974,1732293050375,-1088.01957,0.0001818,2]
[343024975,1732293050386,-300.053411,0.0001818,2]
[343024976,1732293050396,-577.581238,0.0001818,2]
[343024977,1732293050407,-577.581238,0.0001818,2]
[343024978,1732293050417,-3000.0,0.0001819,2]
[343024979,1732293050434,-151.0,0.0001819,2]
[343024980,1732293050453,-214.828522,0.0001819,2]
[343024981,1732293050468,-151.0,0.0001819,2]
[343024982,1732293050485,-1056.253582,0.0001819,2]
[343024983,1732293050504,-1056.253582,0.0001819,2]
[343024984,1732293050521,-722.283918,0.0001819,2]
[343024985,1732293050539,-166.690974,0.0001819,2]
[343024986,1732293050556,-1935.245469,0.0001819,2]
[343024987,1732293050572,-166.690974,0.0001819,2]
[343024988,1732293050587,-1935.245469,0.0001819,2]
[343024989,1732293050601,-3000.0,0.000182,2]
[343024990,1732293050616,-191.558303,0.000182,2]
[343024991,1732293050632,-191.558303,0.000182,2]
[343024992,1732293050651,-350.183569,0.000182,2]
[343024993,1732293050667,-350.183569,0.000182,2]
[343024994,1732293050679,-3000.0,0.0001821,2]
[343024995,1732293050694,-3000.0,0.0001822,2]
[343024996,1732293050712,-914.284859,0.0001822,2]
[343024997,1732293050724,-914.284859,0.0001822,2]
[343024998,1732293050740,-151.0,0.0001822,2]
[343024999,1732293050752,-3000.0,0.0001823,2]
[343025000,1732293050764,-151.0,0.0001823,2]
[343025001,1732293050777,-151.0,0.0001823,2]
[343025002,1732293050791,-151.0,0.0001823,2]
[343025003,1732293050808,-151.0,0.0001823,2]
[343025004,1732293050824,-1056.253582,0.0001823,2]
[343025005,1732293050837,-1056.253582,0.0001823,2]
[343025006,1732293050852,-1015.806133,0.0001823,2]
[343025007,1732293050868,-1015.806129,0.0001823,2]
[343025008,1732293050883,-151.0,0.0001823,2]
[343025009,1732293050897,-1088.01957,0.0001823,2]
[343025010,1732293050913,-300.053411,0.0001823,2]
[343025011,1732293050927,-1088.019573,0.0001823,2]
[343025012,1732293050941,-300.053413,0.0001823,2]
[343025013,1732293050955,-577.581238,0.0001823,2]
[343025014,1732293050969,-577.581243,0.0001823,2]
[343025015,1732293050983,-3000.0,0.0001824,2]
[343025016,1732293050997,-3000.0,0.0001825,2]
[343025017,1732293051012,-191.558303,0.0001825,2]
[343025018,1732293051026,-191.558303,0.0001825,2]
[343025019,1732293051039,-350.183569,0.0001825,2]
[343025020,1732293051055,-350.183569,0.0001825,2]
[343025021,1732293051068,-722.283918,0.0001825,2]
[343025022,1732293051081,-166.690974,0.0001825,2]
[343025023,1732293051093,-1935.245469,0.0001825,2]
[343025024,1732293051107,-166.690974,0.0001825,2]
[343025025,1732293051120,-1935.245469,0.0001825,2]
[343025026,1732293051133,-3000.0,0.0001826,2]
[343025027,1732293051147,-914.284859,0.0001826,2]
[343025028,1732293051161,-914.284858,0.0001826,2]
[343025029,1732293051174,-3239.55243342,0.00018261,2]
[343025030,1732293051188,-3000.0,0.0001827,2]
[343025031,1732293051203,-151.0,0.00018277,2]
[343025032,1732293051217,-259.43368,0.00018277,2]
[343025033,1732293051231,-151.0,0.00018277,2]
[343025034,1732293051245,-151.0,0.00018277,2]
[343025035,1732293051258,-1056.253582,0.00018277,2]
[343025036,1732293051271,-1056.253583,0.00018277,2]
[343025037,1732293051285,-3000.0,0.0001828,2]
[343025038,1732293051299,-3000.0,0.0001829,2]
[343025039,1732293051314,-191.558303,0.0001829,2]
[343025040,1732293051328,-191.558302,0.0001829,2]
[343025041,1732293051342,-350.183569,0.0001829,2]
[343025042,1732293051356,-350.183566,0.0001829,2]
[343025043,1732293051369,-722.283908,0.0001829,2]
[343025044,1732293051383,-166.690974,0.0001829,2]
[343025045,1732293051395,-1935.245469,0.0001829,2]
[343025046,1732293051409,-166.690974,0.0001829,2]
[343025047,1732293051422,-1935.245474,0.0001829,2]
[343025048,1732293051436,-3000.0,0.000183,2]
[343025049,1732293051446,-310.02306764,0.00018308,2]
[343025050,1732293051456,-3000.0,0.0001831,2]
[343025051,1732293051466,-3000.0,0.0001832,2]
[343025052,1732293051475,-151.0,0.0001832,2]
[343025053,1732293051485,-672.72869676,0.00018321,2]
[343025054,1732293051671,-1000.0,0.00018321,2]
[343025055,1732293051689,-500.4917188,0.00018321,2]
[343025056,1732293051698,-500.0,0.00018321,2]
[343025057,1732293051708,-500.0,0.00018321,2]
[343025058,1732293051718,-1000.0,0.00018321,2]
[343025059,1732293051727,-500.0,0.00018321,2]
[343025060,1732293051737,-3000.0,0.0001833,2]
[343025061,1732293051747,-151.0,0.0001833,2]
[343025062,1732293051756,-3000.0,0.0001834,2]
[343025063,1732293051766,-5000.0,0.0001834,2]
[343025064,1732293051775,-172.455007,0.00018344,2]
[343025065,1732293051785,-445.695644,0.00018344,2]
[343025066,1732293051794,-1331.798205,0.00018344,2]
[343025067,1732293051805,-443.932735,0.00018344,2]
[343025068,1732293051814,-3000.0,0.0001835,2]
[343025069,1732293051823,-3000.0,0.0001836,2]
[343025070,1732293051833,-3000.0,0.0001837,2]
[343025071,1732293051842,-3000.0,0.0001838,2]
[343025072,1732293051851,-3000.0,0.0001839,2]
[343025073,1732293051861,-3000.0,0.000184,2]
[343025074,1732293051871,-3000.0,0.0001841,2]
[343025075,1732293051880,-3000.0,0.0001842,2]
[343025076,1732293051890,-3000.0,0.0001843,2]
[343025077,1732293051899,-3000.0,0.0001844,2]
[343025078,1732293051909,-3000.0,0.0001845,2]
[343025079,1732293051918,-3000.0,0.0001846,2]
[343025080,1732293051928,-3000.0,0.0001847,2]
[343025081,1732293051937,-3000.0,0.0001848,2]
[343025082,1732293051946,-3000.0,0.0001849,2]
[343025083,1732293051956,-250.0,0.000185,2]
[343025084,1732293051966,-264.11,0.000185,2]
[343025085,1732293051975,-3000.0,0.000185,2]
[343025086,1732293051985,-3000.0,0.0001851,2]
[343025087,1732293051995,-4984.654956,0.0001852,2]
[343025088,1732293052005,-449.77150189,0.00018521,2]
[343025089,1732293052014,-1021.27501938,0.00018521,2]
[343025090,1732293052024,-634.13513896,0.00018521,2]
[343025091,1732293052034,-1000.0,0.00018521,2]
[343025092,1732293052044,-1000.0,0.00018521,2]
[343025093,1732293052054,-1000.0,0.00018521,2]
[343025094,1732293052067,-5000.0,0.00018533,2]
[343025095,1732293052076,-5000.0,0.00018533,2]
[343025096,1732293052085,-152.0,0.00018553,2]
[343025097,1732293052095,-151.0,0.0001856,2]
[343025098,1732293052105,-151.0,0.0001856,2]
[343025099,1732293052115,-235.29927551,0.0001863,2]
[343025100,1732293052125,-151.0,0.0001879,2]
[343025101,1732293052134,-151.0,0.0001879,2]
[343025102,1732293052144,-186.75,0.000188,2]
[343025103,1732293052153,-5000.0,0.00018837,2]
[343025104,1732293052163,-19076.96789162,0.00019,2]
[343025105,1732293052172,-151.0,0.0001902,2]
[343025106,1732293052182,-151.0,0.0001902,2]
[343025107,1732293052191,-500.0,0.000191,2]
[343025108,1732293052200,-300.0,0.000191,2]
[343025109,1732293052210,-500.0,0.000191,2]
[343025110,1732293052220,-528.0,0.000191,2]
[343025111,1732293052229,-500.0,0.000191,2]
[343025112,1732293052239,-500.0,0.000191,2]
[343025113,1732293052249,-300.0,0.0001911,2]
[343025114,1732293052258,-162.919402,0.00019178,2]
[343025115,1732293052268,-166.973181,0.00019178,2]
[343025116,1732293052278,-172.3228202,0.00019178,2]
[343025117,1732293052287,-36339.652887,0.00019178,2]
[343025118,1732293052297,-500.0,0.00019374,2]
[343025119,1732293052310,-259.88134964,0.00019374,2]
[343025120,1732293052320,-300.0,0.00019374,2]
[343025121,1732293052330,-500.0,0.00019374,2]
[343025122,1732293052340,-528.0,0.00019374,2]
[343025123,1732293052350,-500.0,0.00019374,2]
[343025124,1732293052360,-500.0,0.00019374,2]
[343025125,1732293052370,-1500.0,0.00019522,2]
[343025126,1732293052379,-1500.0,0.00019522,2]
[343025127,1732293052389,-1500.0,0.00019522,2]
[343025128,1732293052399,-500.0,0.00019648,2]
[343025129,1732293052409,-292.65411874,0.00019648,2]
[343025130,1732293052418,-254.31338847,0.00019648,2]
[343025131,1732293052428,-516.49659949,0.00019648,2]
[343025132,1732293052438,-704.85805418,0.00019648,2]
[343025133,1732293052448,-528.0,0.00019648,2]
[343025134,1732293052458,-500.0,0.00019648,2]
[343025135,1732293052467,-585.30488912,0.00019648,2]
[343025136,1732293052477,-200.30205733,0.00019648,2]
[343025137,1732293052487,-616.0,0.000199,2]
[343025138,1732293052496,-169.67232516,0.00019922,2]
[343025139,1732293052505,-164.98164266,0.00019922,2]
[343025140,1732293052515,-500.0,0.00019922,2]
[343025141,1732293052525,-528.0,0.00019922,2]
[343025142,1732293052535,-500.0,0.00019922,2]
[343025143,1732293052546,-134051.64996782,0.0001999,2]
[343025144,1732293052560,-24391.59280483,0.0001999,2]
[343025145,1732293052574,-9280.73789539,0.0002,2]
[343025146,1732293052583,-160.0,0.0002,2]
[343025147,1732293052593,-186.75,0.0002,2]
[343025148,1732293052604,-261.17,0.0002,2]
[343025149,1732293052614,-1866.1819354,0.0002,2]
[343025150,1732293052623,-543.76,0.0002,5]
[343025151,1732293052633,-500.0,0.0002,5]
[343025152,1732293052643,-500.0,0.0002,3]
[343025153,1732293052654,-500.0,0.0002,3]
[343025154,1732293052663,-5564.5271044,0.0002,2]
[343025155,1732293052673,-379.76493508,0.0002,2]
[343025156,1732293052682,-1000.0,0.0002,3]
[343025157,1732293052692,-14671.0,0.0002,2]
[343025158,1732293052702,-7333.0,0.0002,2]
[343025159,1732293052711,-7333.0,0.0002,2]
[343025160,1732293052720,-405.53086772,0.0002,2]
[343025168,1732293743975,176.952091,0.00024658,120]
[343025268,1732294233340,-400.0,0.00013558,2]
[343025269,1732294233354,-400.0,0.00013973,2]
[343025270,1732294233375,-205.675616,0.00016646,2]
[343025271,1732294233398,-2043.10779972,0.00016821,2]
[343025272,1732294233494,-713.59446931,0.00016821,2]
[343025273,1732294233519,-784.34129982,0.00016821,2]
[343025280,1732294238377,-255.8920437,0.00016821,2]
[343025281,1732294238541,-7174.99071305,0.00016821,2]
[343025282,1732294238550,-222.17458372,0.000176,2]
[343025283,1732294238560,-45648.31902654,0.000176,2]
[343025284,1732294238569,-500.0,0.00017699,2]
[343025285,1732294238579,-500.0,0.00017699,2]
[343025286,1732294238588,-540.62962399,0.00017699,2]
[343025288,1732294238598,-500.0,0.00017699,2]
[343025289,1732294238607,-500.0,0.00017699,2]
[343025290,1732294238617,-500.0,0.00017699,2]
[343025291,1732294238626,-500.0,0.00017699,2]
[343025292,1732294238636,-500.0,0.00017699,2]
[343025293,1732294238647,-411.85115655,0.00017699,2]
[343025294,1732294238657,-397.51241461,0.00017699,2]
[343025295,1732294238667,-37709.86171177,0.000177,2]
[343025296,1732294238680,-16509.93089023,0.000177,2]
[343025306,1732294240228,-195780.207398,0.000177,2]
[343025307,1732294240237,-185.23207624,0.00017907,2]
[343025308,1732294240248,-530.0,0.00018007,2]
[343025310,1732294240258,-1107.0,0.00018007,2]
[343025311,1732294240268,-2381.0,0.00018007,2]
[343025313,1732294240279,-348.985,0.00018021,2]
[343025314,1732294240288,-200.0,0.0001863,2]
[343025316,1732294240298,-162.919402,0.00019178,2]
[343025317,1732294240308,-14000.8652069,0.00019178,2]
[343025318,1732294240318,-166.973181,0.00019178,2]
[343025320,1732294240328,-160.9921,0.00019378,2]
[343025321,1732294240338,-8162.53223436,0.00019535,2]
[343025324,1732294240348,-8162.53223437,0.00019907,2]
[343025325,1732294240357,-185.23207623,0.0001995,2]
[343025326,1732294240367,-500.0,0.00019973,2]
[343025328,1732294240376,-500.0,0.00019973,2]
[343025329,1732294240386,-6927.46913228,0.0002,2]
[343025331,1732294240396,-7333.0,0.0002,2]
[343025332,1732294240407,-160.0,0.0002,2]
[343025334,1732294240417,-162.31,0.0002,2]
[343025335,1732294240427,-500.0,0.0002,2]
[343025336,1732294240436,-500.0,0.0002,2]
[343025338,1732294240446,-151.0,0.0002,2]
[343025339,1732294240456,-47679.92708693,0.0002,2]
[343025349,1732294240817,-266.98959035,0.0002,2]
[343025660,1732294244027,-7430.88275675,0.00016653,2]
[343025662,1732294244037,-10126.6449112,0.0002,2]
[343025891,1732294246289,-419.52770081,0.0002,2]
[343025899,1732294246347,-8880.0,0.0002,2]
[343027827,1732294647830,500.0,0.00029615,120]
[343027991,1732295432905,-400.0,0.00013695,2]
[343027992,1732295432916,-400.0,0.00013973,2]
[343027993,1732295432927,-3975.5502247,0.00016721,2]
[343027994,1732295432939,-300.0,0.00017599,2]
[343027995,1732295432949,-300.0,0.00017599,2]
[343027996,1732295432959,-1598.76868636,0.000176,2]
[343027997,1732295432972,-433.23921769,0.000176,2]
[343027998,1732295432983,-9361.5,0.000176,2]
[343027999,1732295432999,-5055.96598795,0.000176,2]
[343028000,1732295433008,-539.98947699,0.000176,2]
[343028001,1732295433018,-500.0,0.000176,2]
[343028002,1732295433028,-504.44464,0.000176,2]
[343028003,1732295433037,-500.0,0.000176,2]
[343028004,1732295433047,-500.0,0.000176,2]
[343028005,1732295433057,-500.0,0.000176,2]
[343028006,1732295433068,-302.36637322,0.000176,2]
[343028007,1732295433078,-502.71879625,0.000176,2]
[343028008,1732295433089,-500.0,0.000176,2]
[343028009,1732295433099,-500.0,0.000176,2]
[343028010,1732295433111,-500.0,0.000176,2]
[343028011,1732295433122,-500.0,0.000176,2]
[343028012,1732295433133,-205.675617,0.00017736,2]
[343028013,1732295433144,-61.03476923,0.00018007,2]
[343028014,1732295433160,-2319.96523077,0.00018007,2]
[343028015,1732295433171,-4563.3752742,0.00018442,2]
[343028016,1732295433181,-162.919402,0.00019178,2]
[343028017,1732295433191,-420.0,0.0001921,2]
[343028018,1732295433201,-359.0,0.00019359,2]
[343028019,1732295433211,-279.188,0.00019899,2]
[343028020,1732295433221,-212.42790628,0.00019899,2]
[343028021,1732295433231,-266.39026829,0.00019899,2]
[343028022,1732295433241,-446.03540247,0.000199,2]
[343028023,1732295433251,-125764.56192866,0.000199,2]
[343028024,1732295433263,-16777.69528447,0.000199,2]
[343028025,1732295433279,-107457.74278687,0.000199,2]
[343028026,1732295433290,-500.0,0.00019973,2]
[343028027,1732295433300,-500.0,0.00019973,2]
[343028028,1732295433310,-500.0,0.00019973,2]
[343028029,1732295433320,-160.0,0.0002,2]
[343028030,1732295433331,-500.0,0.0002,2]
[343028031,1732295433347,-500.0,0.0002,2]
[343028032,1732295433357,-558385.0,0.0002,2]
[343028033,1732295433366,-616.0,0.000201,2]
[343028034,1732295433376,-600.0,0.0002015,2]
[343028035,1732295433387,-600.0,0.0002036,2]
[343028036,1732295433397,-15296.0395948,0.00020377,2]
[343028037,1732295433410,-1260.72265,0.000204,2]
[343028038,1732295433420,-400.0,0.00020447,2]
[343028039,1732295433430,-1000.0,0.00020521,2]
[343028040,1732295433440,-1000.0,0.00020521,2]
[343028041,1732295433450,-1000.0,0.00020521,2]
[343028042,1732295433460,-600.0,0.0002057,2]
[343028043,1732295433470,-1008.51973977,0.00020593,2]
[343028044,1732295433481,-600.0,0.0002078,2]
[343028045,1732295433491,-1000.0,0.000209,2]
[343028046,1732295433501,-690.66649808,0.0002099,2]
[343028047,1732295433512,-6494.40301639,0.00021,2]
[343028048,1732295433522,-4773.10698777,0.00021,2]
[343028049,1732295433533,-362.57512031,0.00021,5]
[343028050,1732295433544,-3086.33,0.00021,2]
[343028051,1732295433555,-299.336707,0.00021,3]
[343028052,1732295433566,-3000.0,0.00021,2]
[343028053,1732295433578,-2157.1907,0.00021,2]
[343028054,1732295433589,-1143.375,0.00021007,2]
[343028055,1732295433601,-3000.0,0.0002101,2]
[343028056,1732295433612,-3000.0,0.0002102,2]
[343028057,1732295433622,-3000.0,0.0002103,2]
[343028058,1732295433633,-3000.0,0.0002104,2]
[343028059,1732295433644,-3000.0,0.0002105,2]
[343028060,1732295433656,-7238.0393757,0.00021058,2]
[343028061,1732295433667,-5000.0,0.00021058,2]
[343028062,1732295433676,-3000.0,0.0002106,2]
[343028063,1732295433685,-3000.0,0.0002107,2]
[343028064,1732295433695,-3000.0,0.0002108,2]
[343028065,1732295433704,-3000.0,0.0002109,2]
[343028066,1732295433714,-3000.0,0.000211,2]
[343028067,1732295433724,-3000.0,0.0002111,2]
[343028068,1732295433734,-3000.0,0.0002112,2]
[343028069,1732295433743,-3000.0,0.0002113,2]
[343028070,1732295433753,-3000.0,0.0002114,2]
[343028071,1732295433762,-3000.0,0.0002115,2]
[343028072,1732295433772,-3000.0,0.0002116,2]
[343028073,1732295433781,-3000.0,0.0002117,2]
[343028074,1732295433790,-3000.0,0.0002118,2]
[343028075,1732295433799,-3000.0,0.0002119,2]
[343028076,1732295433809,-151.0,0.000212,3]
[343028077,1732295433819,-3000.0,0.000212,2]
[343028078,1732295433828,-3000.0,0.0002121,2]
[343028079,1732295433838,-3000.0,0.0002122,2]
[343028080,1732295433848,-3000.0,0.0002123,2]
[343028081,1732295433856,-3000.0,0.0002124,2]
[343028082,1732295433866,-3000.0,0.0002125,2]
[343028083,1732295433876,-3000.0,0.0002126,2]
[343028084,1732295433885,-3000.0,0.0002127,2]
[343028085,1732295433895,-500.0,0.00021274,2]
[343028086,1732295433908,-299.7,0.00021274,2]
[343028087,1732295433918,-299.7,0.00021274,2]
[343028088,1732295433928,-500.0,0.00021274,2]
[343028089,1732295433938,-500.0,0.00021274,2]
[343028090,1732295433948,-299.7,0.00021274,2]
[343028091,1732295433958,-3000.0,0.0002128,2]
[343028092,1732295433968,-3000.0,0.0002129,2]
[343028093,1732295433978,-3000.0,0.000213,2]
[343028094,1732295433988,-3000.0,0.0002131,2]
[343028095,1732295433998,-3000.0,0.0002132,2]
[343028096,1732295434008,-3000.0,0.0002133,2]
[343028097,1732295434018,-3000.0,0.0002134,2]
[343028098,1732295434028,-3000.0,0.0002135,2]
[343028099,1732295434038,-151.0,0.0002135,2]
[343028100,1732295434049,-3000.0,0.0002136,2]
[343028101,1732295434059,-3000.0,0.0002137,2]
[343028102,1732295434069,-3000.0,0.0002138,2]
[343028103,1732295434080,-3000.0,0.0002139,2]
[343028104,1732295434090,-397.256155,0.0002139,2]
[343028105,1732295434100,-3000.0,0.000214,2]
[343028106,1732295434110,-3000.0,0.0002141,2]
[343028107,1732295434120,-3000.0,0.0002142,2]
[343028108,1732295434131,-3000.0,0.0002143,2]
[343028109,1732295434141,-3465.758015,0.0002144,2]
[343028110,1732295434151,-191.59,0.000215,2]
[343028111,1732295434163,-400.000001,0.000215,2]
[343028112,1732295434174,-1500.0,0.00021522,2]
[343028113,1732295434183,-1500.0,0.00021522,2]
[343028114,1732295434193,-1500.0,0.00021522,2]
[343028115,1732295434203,-500.0,0.00021548,2]
[343028116,1732295434213,-299.67,0.00021548,2]
[343028117,1732295434223,-299.67,0.00021548,2]
[343028118,1732295434233,-500.0,0.00021548,2]
[343028119,1732295434243,-500.0,0.00021548,2]
[343028120,1732295434253,-162745.48356413,0.000216,2]
[343028121,1732295434263,-151.0,0.000216,2]
[343028122,1732295434273,-397.256155,0.000216,2]
[343028123,1732295434282,-500.0,0.00021822,2]
[343028124,1732295434293,-500.0,0.00021822,2]
[343028125,1732295434303,-500.0,0.00021822,2]
[343028126,1732295434313,-3013.3421055,0.00021852,2]
[343028127,1732295434323,-2927.0,0.0002187,2]
[343028128,1732295434336,-290.67486232,0.00021918,2]
[343028129,1732295434348,-500.0,0.00021918,2]
[343028130,1732295434358,-25643.45668469,0.00022,2]
[343028131,1732295434368,-160.74247285,0.00022,10]
[343028132,1732295434381,-2157.1907,0.00022,2]
[343028133,1732295434390,-246.25948369,0.0002201,16]
[343028134,1732295434400,-151.0,0.00022084,7]
[343028135,1732295434414,-397.256155,0.00022084,7]
[343028136,1732295434424,-500.0,0.00022084,2]
[343028137,1732295434434,-151.0,0.00022084,2]
[343028138,1732295434446,-3200.0,0.00022084,2]
[343028139,1732295434456,-500.0,0.00022096,2]
[343028140,1732295434467,-500.0,0.00022096,2]
[343028141,1732295434478,-500.0,0.00022096,2]
[343028142,1732295434488,-500.0,0.0002237,2]
[343028143,1732295434499,-154.16189149,0.0002237,2]
[343028144,1732295434509,-500.0,0.0002237,2]
[343028145,1732295434520,-500.0,0.0002237,2]
[343028146,1732295434531,-951.47396182,0.00022644,2]
[343028147,1732295434541,-500.0,0.00022644,2]
[343028148,1732295434552,-500.0,0.00022644,2]
[343028149,1732295434562,-1000.0,0.0002282,2]
[343028150,1732295434572,-1506.34291362,0.0002282,2]
[343028151,1732295434582,-2000.0,0.0002282,2]
[343028152,1732295434591,-151.0,0.00022896,2]
[343028153,1732295434601,-500.0,0.00022918,2]
[343028154,1732295434610,-500.0,0.00022918,2]
[343028155,1732295434741,-242.52988357,0.00023,2]
[343028156,1732295434751,-1081.71306349,0.00023,2]
[343028157,1732295434761,-500.0,0.00023,5]
[343028158,1732295434770,-202.0,0.00023,2]
[343028159,1732295434779,-458.0,0.00023,2]
[343028160,1732295434789,-200.0,0.00023,2]
[343028161,1732295434799,-500.0,0.00023192,2]
[343028162,1732295434809,-500.0,0.00023192,2]
[343028163,1732295434820,-999.999999,0.000232,2]
[343028164,1732295434829,-176.4840007,0.000232,2]
[343028165,1732295434840,-458.0,0.00023288,2]
[343028166,1732295434850,-500.0,0.00023288,2]
[343028167,1732295434859,-262.86,0.00023321,2]
[343028168,1732295434869,-500.0,0.00023466,2]
[343028169,1732295434880,-500.0,0.0002374,2]
[343028170,1732295434890,-400.0,0.00024,2]
[343028171,1732295434900,-500.0,0.00024014,2]
[343028172,1732295434913,-202.0,0.00024164,2]
[343028173,1732295434923,-458.0,0.00024164,2]
[343028174,1732295434934,-500.0,0.00024288,2]
[343028175,1732295434945,-2500.0,0.00024356,2]
[343028176,1732295434955,-1015.64987527,0.00024494,2]
[343028177,1732295434964,-500.0,0.00024562,2]
[343028178,1732295434974,-176.952091,0.00024658,2]
[343028179,1732295434984,-899.804941,0.00024658,7]
[343028180,1732295434994,-899.804941,0.00024658,7]
[343028181,1732295435004,-899.804941,0.00024658,7]
[343028182,1732295435015,-899.804941,0.00024658,7]
[343028183,1732295435025,-899.804941,0.00024658,7]
[343028184,1732295435035,-899.804941,0.00024658,7]
[343028185,1732295435046,-380.0,0.00024658,2]
[343028186,1732295435057,-200.0,0.00024658,2]
[343028187,1732295435067,-200.0,0.00024658,15]
[343028188,1732295435076,-151.0,0.00024658,7]
[343028189,1732295435086,-151.0,0.00024658,7]
[343028190,1732295435096,-151.0,0.00024658,7]
[343028191,1732295435107,-859.85632792,0.00024658,2]
[343028192,1732295435117,-500.0,0.00024658,2]
[343028193,1732295435126,-500.0,0.00024658,2]
[343028194,1732295435136,-500.0,0.00024658,2]
[343028195,1732295435146,-611.29442066,0.00024658,2]
[343028196,1732295435156,-1000.0,0.00024692,2]
[343028197,1732295435166,-10157.8,0.000247,14]
[343028198,1732295435176,-41568.49,0.000247,2]
[343028199,1732295435197,-151.0,0.000247,7]
[343028200,1732295435210,-397.256155,0.000247,7]
[343028201,1732295435221,-899.804941,0.000247,7]
[343028202,1732295435231,-899.804941,0.000247,7]
[343028203,1732295435242,-151.0,0.000247,7]
[343028204,1732295435252,-500.0,0.00024836,2]
[343028205,1732295435263,-315.24881543,0.00024852,2]
[343028206,1732295435273,-212.5677706,0.00024986,2]
[343028207,1732295435284,-1000.5,0.00025,31]
[343028208,1732295435294,-1009.4,0.00025,31]
[343028209,1732295435305,-203.64732086,0.00025,2]
[343028210,1732295435315,-165.67164176,0.00025,2]
[343028211,1732295435327,-10364.0,0.00025,2]
[343028212,1732295435339,-43431.29838678,0.00025,2]
[343028213,1732295435349,-347.19440316,0.00025,2]
[343028214,1732295435360,-510.46535059,0.00025,2]
[343028215,1732295435373,-828.98977817,0.00025,2]
[343028216,1732295435385,-135866.92379508,0.00025,2]
[343028217,1732295435395,-300.0,0.00025,2]
[343028218,1732295435407,-300.0,0.00025,2]
[343028219,1732295435418,-300.0,0.00025,2]
[343028220,1732295435428,-300.0,0.00025,2]
[343028221,1732295435440,-300.0,0.00025,2]
[343028222,1732295435451,-300.0,0.00025,2]
[343028223,1732295435461,-300.0,0.00025,2]
[343028224,1732295435471,-300.0,0.00025,2]
[343028225,1732295435481,-1206.52675629,0.00025,2]
[343028226,1732295435492,-1041.633799,0.00025,2]
[343028227,1732295435501,-500.0,0.00025,2]
[343028228,1732295435512,-500.0,0.00025,2]
[343028229,1732295435522,-500.0,0.00025,2]
[343028230,1732295435532,-14000.0,0.00025,4]
[343028231,1732295435541,-151.0,0.00025,2]